Cogmind - Beta 11 X5 @@@ ROGUE MODE // 2021.06.25 @ 10:33:08 Player: Exp. Geonium Core Result: Destroyed by Y-54 Guardian with Flak Gun Performance ------------- Evolutions (3) 1500 Regions Visited (4) 800 Robots Destroyed (0) 0 Value Destroyed (0) 0 Prototype IDs (2) 40 Alien Tech Used (0) 0 Bonus (834) 834 TOTAL SCORE: 3174 Bonus ------- Pacifist 834 Cogmind --------- Core Integrity 0/700 Matter 266/300 Energy 98/100 System Corruption 0% Temperature Cool (12) Movement Core (50) Location -7/Factory Parts ------- > --- POWER (1) -------- (None) > --- PROPULSION (4) --- (None) > --- UTILITY (6) ------ Seismic Analyzer Terrain Scan Processor Terrain Scan Processor > --- WEAPON (2) ------- (None) > --- INVENTORY (5) ---- Large Storage Unit Terrain Scan Processor Advanced ECM Suite Medium Laser Grenade Launcher Peak State ------------ > --- POWER ------------ (None) > --- PROPULSION ------- Light Treads Light Treads Improved Treads Cesium-ion Thruster > --- UTILITY ---------- Seismic Analyzer Terrain Scan Processor Terrain Scan Processor Advanced ECM Suite System Shield > --- WEAPON ----------- Small Laser Light Assault Rifle > --- INVENTORY -------- Large Storage Unit Terrain Scan Processor Medium Laser Grenade Launcher [Rating: 21] Favorites ----------- Power None Propulsion Light Treads Treads Light Treads Flight Unit Cesium-ion Thruster Utility Terrain Scan Processor Device Advanced ECM Suite Processor Terrain Scan Processor Hackware System Shield Weapon Small Laser Energy Gun Small Laser Ballistic Gun Light Assault Rifle Build | -11 -10 -9 -8 -7 ------- Run | Scr Mat Mat Mat Fac Slots Evolved 6 | . . 2 2 2 Power . | . . . . . Propulsion 2 | . . 2 . . Utility 4 | . . . 2 2 Weapon . | . . . . . Parts Attached 12 | 4 . 2 2 4 Power . | . . . . . Engine . | . . . . . Core . | . . . . . Reactor . | . . . . . Propulsion 4 | 2 . . 1 1 Treads 3 | 2 . . 1 . Leg . | . . . . . Wheel . | . . . . . Hover . | . . . . . Flight 1 | . . . . 1 Utility 6 | . . 2 1 3 Device 2 | . . . . 2 Storage . | . . . . . Processor 3 | . . 2 . 1 Hackware 1 | . . . 1 . Protection . | . . . . . Artifact . | . . . . . Weapon 2 | 2 . . . . Energy Gun 1 | 1 . . . . Energy Cannon . | . . . . . Ballistic Gun 1 | 1 . . . . Ballistic Cannon . | . . . . . Launcher . | . . . . . Special Weapon . | . . . . . Impact Weapon . | . . . . . Slashing Weapon . | . . . . . Piercing Weapon . | . . . . . Special Melee Weapon . | . . . . . Unidentified Prototypes . | . . . . . Parts Lost 6 | . . . . 6 Power . | . . . . . Propulsion 3 | . . . . 3 Utility 1 | . . . . 1 Weapon 2 | . . . . 2 Highest Loss Streak 5 | . . . . 5 Average Slot Usage (%) 51 | . 57 44 63 49 Treads 16 | . 28 22 19 12 Flight 1 | . . . . 2 Processor 14 | . . . 18 21 Hackware 2 | . . . 7 2 Energy Gun 7 | . 14 11 9 4 Ballistic Gun 7 | . 14 11 9 4 Naked Turns . | . . . . . Heaviest Build 5 | 2 2 2 2 5 Greatest Support 40 | 40 3 3 3 5 Greatest Overweight (x) 1 | . . . . 1 Average Overweight (x) . | . . . . . Largest Inventory Capacity 5 | 5 5 5 5 5 Average Capacity 5 | 5 5 5 5 5 Most Carried 5 | . 2 5 5 5 Average Carried 3 | . 1 3 5 4 Final Capacity 5 | 5 5 5 5 5 Final Carried 5 | . 2 5 5 5 Class Distribution -------------------- 100% | Mutant Dominant Class ---------------- Mutant | -10/Materials Mutant | -9/Materials Mutant | -8/Materials Mutant | -7/Factory Resources | -11 -10 -9 -8 -7 ----------- Run | Scr Mat Mat Mat Fac Matter Collected 256 | 158 . . . 98 Remotely . | . . . . . Salvage Created . | . . . . . Parts . | . . . . . Haulers Intercepted . | . . . . . Recyclers Shooed . | . . . . . Parts Field Recycled . | . . . . . Retrieved Matter . | . . . . . Parts Self-Destructed . | . . . . . Prevented . | . . . . . Kills | -11 -10 -9 -8 -7 ------- Run | Scr Mat Mat Mat Fac Combat Hostiles Destroyed . | . . . . . Classes Destroyed . | . . . . . Best Kill Streak . | . . . . . Combat Bots Only . | . . . . . Max Kills in Single Turn . | . . . . . Gunslinging . | . . . . . Exploded . | . . . . . Melee . | . . . . . Uniques/NPCs Destroyed . | . . . . . Combat | -11 -10 -9 -8 -7 -------- Run | Scr Mat Mat Mat Fac Damage Taken 1230 | . . 42 84 1104 Core 701 | . . . . 701 Absorbed by Shields 61 | . . . . 61 Core Remaining (%) 100 | 100 100 100 100 . Volleys Fired . | . . . . . Largest . | . . . . . Hottest . | . . . . . Shots Fired . | . . . . . Gun . | . . . . . Cannon . | . . . . . Launcher . | . . . . . Special . | . . . . . Kinetic . | . . . . . Thermal . | . . . . . Explosive . | . . . . . Electromagnetic . | . . . . . Robot Hit Streak . | . . . . . Robot Miss Streak . | . . . . . Penetration Max . | . . . . . Secondary Targets . | . . . . . Shots Hit Robots . | . . . . . Core Hits . | . . . . . Critical Kills . | . . . . . Critical Parts Destroyed . | . . . . . Critical Strikes . | . . . . . Melee Attacks . | . . . . . Impact . | . . . . . Slashing . | . . . . . Piercing . | . . . . . Sneak Attacks . | . . . . . Combat Hostiles . | . . . . . Follow-up Attacks . | . . . . . Damage Inflicted . | . . . . . Guns . | . . . . . Cannons . | . . . . . Explosions . | . . . . . Melee . | . . . . . Ramming . | . . . . . Kinetic . | . . . . . Thermal . | . . . . . Explosive . | . . . . . Electromagnetic . | . . . . . Impact . | . . . . . Slashing . | . . . . . Piercing . | . . . . . Highest Corruption . | . . . . . Average Corruption . | . . . . . Corruption Purged . | . . . . . Overload Shots . | . . . . . Overflow Damage . | . . . . . Projectiles . | . . . . . Explosions . | . . . . . Melee . | . . . . . Knockbacks . | . . . . . Impact . | . . . . . Kinetic . | . . . . . Secondary . | . . . . . Self-Inflicted Damage . | . . . . . Shots . | . . . . . Rammed . | . . . . . Targets Rammed . | . . . . . Kicked . | . . . . . Crushed . | . . . . . Highest Temperature . | . . . . . Average Temperature . | . . . . . Received Heat Transfer 114 | . . 24 . 90 Siege Activations . | . . . . . Robots Corrupted . | . . . . . Combat Hostiles . | . . . . . Parts Fried . | . . . . . Impact Corruptions . | . . . . . Robots Melted . | . . . . . Combat Hostiles . | . . . . . Parts Melted . | . . . . . Heat Transferred . | . . . . . Parts Sabotaged . | . . . . . Parts Stolen . | . . . . . Parts Stripped . | . . . . . Power Chain Reactions . | . . . . . Missiles Intercepted . | . . . . . Alert | -11 -10 -9 -8 -7 ------- Run | Scr Mat Mat Mat Fac Peak Influence 462 | . 15 85 127 462 Initial 57 | . . 5 35 57 Average 125 | . 8 44 70 205 Maximum Alert Level 2 | . . . . 2 Low Security (%) 74 | 100 100 100 100 51 Level 1 20 | . . . . 38 Level 2 5 | . . . . 10 Level 3 . | . . . . . Level 4 . | . . . . . Level 5 . | . . . . . High Security . | . . . . . Max Security . | . . . . . Squads Dispatched 2 | . . 1 . 1 Investigation 2 | . . 1 . 1 Extermination . | . . . . . Reinforcement . | . . . . . Assault . | . . . . . Garrison . | . . . . . Intercept . | . . . . . Construction Impeded . | . . . . . Haulers Reinforced . | . . . . . Cargo Convoy Interrupts . | . . . . . Stealth | -11 -10 -9 -8 -7 --------- Run | Scr Mat Mat Mat Fac Distress Signals 3 | . 1 . 1 1 Communications Jammed . | . . . . . Distress Signals . | . . . . . Times Spotted 48 | . 2 5 8 33 Peak Tracking Total 10 | . 3 4 10 9 Tactical Retreats 12 | . . 2 1 9 Traps | -11 -10 -9 -8 -7 ------- Run | Scr Mat Mat Mat Fac Traps Triggered 5 | . . 1 . 4 Indirectly . | . . . . . Trap Hack Attempts . | . . . . . Triggered . | . . . . . Disarmed . | . . . . . Reprogrammed . | . . . . . Reused . | . . . . . Traps Extracted . | . . . . . Installed . | . . . . . Triggered . | . . . . . Machines | -11 -10 -9 -8 -7 ---------- Run | Scr Mat Mat Mat Fac Machines Disabled . | . . . . . Max in Single Turn . | . . . . . Machines Sabotaged . | . . . . . Garrisons Compromised . | . . . . . Overloaded Fab Kills . | . . . . . Fab Network Shutdowns . | . . . . . Hacking | -11 -10 -9 -8 -7 --------- Run | Scr Mat Mat Mat Fac Machines Accessed 6 | . 1 3 1 1 Terminals 6 | . 1 3 1 1 Fabricators . | . . . . . Repair Stations . | . . . . . Recycling Units . | . . . . . Scanalyzers . | . . . . . Garrison Access . | . . . . . Total Hacks 21 | . 2 9 8 2 Successful 11 | . . 6 4 1 Failed 10 | . 2 3 4 1 Catastrophic 3 | . 1 1 . 1 Database Lockouts . | . . . . . Manual 20 | . 2 8 8 2 Terminals 21 | . 2 9 8 2 Fabricators . | . . . . . Repair Stations . | . . . . . Recycling Units . | . . . . . Scanalyzers . | . . . . . Garrison Access . | . . . . . Terminal Hacks 4 | . . 2 1 1 Prototype ID Bank 1 | . . 1 . . Emergency Access Points 1 | . . . . 1 Terminal Index 1 | . . . 1 . Registered Components 1 | . . 1 . . Fabricator Hacks . | . . . . . Repair Station Hacks . | . . . . . Recycling Unit Hacks . | . . . . . Scanalyzer . | . . . . . Garrison Access Hacks . | . . . . . Unauthorized Hacks 7 | . . 4 3 . Terminals 7 | . . 4 3 . Track 2 | . . 1 1 . Botnet 3 | . . 2 1 . Operators 2 | . . 1 1 . Fabricators . | . . . . . Repair Stations . | . . . . . Recycling Units . | . . . . . Scanalyzers . | . . . . . Garrison Access . | . . . . . Data Cores Recovered . | . . . . . Used . | . . . . . Hacking Detections 6 | . 1 3 1 1 Full Trace Events 1 | . 1 . . . Feedback Events . | . . . . . Feedback Blocked . | . . . . . Robot Schematics Acquired . | . . . . . Robots Built . | . . . . . Matter . | . . . . . Time . | . . . . . Total Robot Build Rating . | . . . . . Part Schematics Acquired . | . . . . . Parts Built . | . . . . . Matter . | . . . . . Time . | . . . . . Total Part Build Rating . | . . . . . Parts Repaired . | . . . . . Time . | . . . . . Parts Recycled . | . . . . . Recycled Matter . | . . . . . Retrieved Matter . | . . . . . Retrieved Components . | . . . . . Parts Scanalyzed . | . . . . . Part Schematics Acquired . | . . . . . Parts Damaged . | . . . . . Bothacking | -11 -10 -9 -8 -7 ------------ Run | Scr Mat Mat Mat Fac Used RIF Installer . | . . . . . Robots Hacked . | . . . . . Non-combat . | . . . . . Combat . | . . . . . Robot Hacks Applied . | . . . . . Relay Couplers Released . | . . . . . Robots Rewired . | . . . . . Allies Hacked . | . . . . . Hacks Repelled . | . . . . . Allies | -11 -10 -9 -8 -7 -------- Run | Scr Mat Mat Mat Fac Total Allies . | . . . . . Largest Group . | . . . . . Highest-Rated Group . | . . . . . Highest-Rated Ally . | . . . . . Total Orders . | . . . . . Ally Attacks . | . . . . . Total Damage . | . . . . . Kills . | . . . . . Allies Corrupted . | . . . . . Allies Melted . | . . . . . Intel | -11 -10 -9 -8 -7 ------- Run | Scr Mat Mat Mat Fac Robot Analysis Total . | . . . . . Derelict Logs Recovered . | . . . . . Drone Launches . | . . . . . Drone Recoveries . | . . . . . Exploration | -11 -10 -9 -8 -7 ------------- Run | Scr Mat Mat Mat Fac Turns Passed 540 | 46 35 107 72 280 Spaces Moved 868 | 28 65 199 132 444 Core 833 | 8 65 199 132 429 Treads 20 | 20 . . . . Legs . | . . . . . Wheels . | . . . . . Hover . | . . . . . Flight 15 | . . . . 15 Fastest Speed 50 | 50 50 50 50 50 Average Speed 54 | 128 50 50 50 54 Slowest Speed 160 | 160 50 50 50 100 Overloaded Moves . | . . . . . Propulsion Burnouts . | . . . . . Robots Hopped . | . . . . . Cave-ins Triggered . | . . . . . Exploration Rate (%) 20 | 4 29 26 23 21 Regions Visited 4 Branch Regions . Pre-discovered Areas . | . . . . . Known Exits Taken . | . . . . . Unknown Exits Taken 4 | 1 1 1 1 . Scrap Searched . | . . . . . Spaces Dug . | . . . . . Terrain Destroyed . | . . . . . Melee . | . . . . . Projectile . | . . . . . AOE . | . . . . . Terrain Rammed . | . . . . . Walls Destroyed . | . . . . . Machines Disabled . | . . . . . Actions | -11 -10 -9 -8 -7 --------- Run | Scr Mat Mat Mat Fac Total 926 | 36 66 204 136 484 Wait 21 | 5 . 1 3 12 Move 864 | 27 64 198 131 444 Hop . | . . . . . Pick Up 6 | . 2 3 . 1 Fast Attach 9 | 4 . 2 2 1 Attach 3 | . . . . 3 Detach 2 | . . . . 2 Swap . | . . . . . Drop . | . . . . . Fire . | . . . . . Melee . | . . . . . Ram . | . . . . . Kick . | . . . . . Crush . | . . . . . Escape Stasis 21 | . . . . 21 Rewire . | . . . . . Trap . | . . . . . Miscellaneous . | . . . . . Route ------- -11/Scrapyard -10/Materials (discovered 2 exits: *Mat / [*Min]) -9/Materials -8/Materials -7/Factory (discovered 1 exit: [*Low]) History --------- Turn | Location | Event 7 | -11/Scrapyard | Discovered new exit (range 15) 47 | -11/Scrapyard | Entered Materials 66 | -10/Materials | Discovered new exit (range 14) 74 | -10/Materials | Discovered new exit (range 15) 82 | -10/Materials | Entered another Materials area 82 | -9/Materials | Evolved 2 slots: Propulsion x2 164 | -9/Materials | Discovered new exit (range 11) 189 | -9/Materials | Entered another Materials area 189 | -8/Materials | Evolved 2 slots: Utility x2 250 | -8/Materials | Discovered new exit (range 16) 261 | -8/Materials | Entered Factory 261 | -7/Factory | Evolved 2 slots: Utility x2 314 | -7/Factory | Build established: Mutant 474 | -7/Factory | Core integrity fell below 50% 485 | -7/Factory | Lost 5 parts (3n2w) 505 | -7/Factory | Core integrity fell below 20% 540 | -7/Factory | Discovered new exit (range 10) 541 | -7/Factory | Destroyed by Y-54 Guardian with Flak Gun Last Messages --------------- 00467_ Slug penetrates Wall. 00470_ Penetrated by Slug. 00473_ Slug penetrates Door. 00476_ Slug penetrates Wall. 00483_ Triggered Proton Bomb Trap. 00483_ A bubble of electromagnetic force engulfs the area. 00483_ Proton Bomb Trap short circuited. 00483_ A bubble of electromagnetic force engulfs the area. 00483_ Proton Bomb Trap short circuited. 00483_ Door malfunctions. 00483_ A bubble of electromagnetic force engulfs the area. 00509_ Connecting with Terminal... 00509_ Current location identified: Factory >>Access(Emergency) Found 1 emergency access door: (61,83) Map updated. 00522_ K-01 Serf collects debris. 00532_ K-01 Serf cleans the Matter Pump. 00540_ EXIT=FOUND Map ----- +----------------------------------------------------+ | ????# #????????????????????????????????????# | | ?#### #?????????????????????""???????? ????# | | ?+ #????????????????????? ?????# #### | | ?# #??????????????????###+####### | | ## ############+####### #### | | # #??# | | #??# | | # #??# | | ##################+####### """ """ ????# | | ?????????????????????????# """ ""??????# ^ | | ?????????????????????????# """ """ #??# | | ?????????????????????????# #??# | | ?????????????????????????# """ """ #??# | | ?????????????????????????# """ """?????# | | ?????????????????????????# """ """ #??# | | ?????????????????????????# #??# | | ?????????????????????????#!!* """ """ #??#+##+## | | ?????????????????????????#!** """ """???????????? | | ?????????????????????????#!* """ """ #????????? | | ?????????????????????????# #????????? | | ?????????????????????????#]! """ """ #????????? | | ?????????????????????????#]! """ """???????????? | | ???????????????###+??????#!! """ """ #????????? | | ???????????????# ##### #????????? | | ???????????????# ! r ! #????????? | | ?????????????+ Y @ #????????? | | ??????????????## ##+#####/#????????? | | ???????????????# r##### #?????????????????? | | ???????????????### #?????#######?????????????????? | | ?????????????????????????????????????????????????? | | ?????????????????????????????????????????????????? | | ?????????????????????????????????????????????????? | | ?????????????????????????????????????????????????? | | ?????????????????????????????????????????????????? | | ?????????????????????????????????????????????????? | | ?????????????????????????????????????????????????? | | ?????????????????????????????????????????????????? | | ?????????????????????????????????????????????????? | | ?????????????????????????????????????????????????? | | ?????????????????????????????????????????????????? | | ?????????????????????????????????????????????????? | | ?????????????????????????????????????????????????? | | ?????????????????????????????????????????????????? | | ?????????????????????????????????????????????????? | | ?????????????????????????????????????????????????? | | ?????????????????????????????????????????????????? | | ?????????????????????????????????????????????????? | | ?????????????????????????????????????????????????? | | ?????????????????????????????????????????????????? | | ?????????????????????????????????????????????????? | +----------------------------------------------------+ Best States ------------- Heat Dissipation 34 Energy Generation 5 Energy Capacity 100 Matter Stores 266 Matter Capacity 300 Sight Range 16 Terrain Scan Density 210 ECM Strength 2 Evasion (%) 55 Recoil Reduction 2 Defensive Hacking 10 Item Schematics ----------------- None Robot Schematics ------------------ None Fabricated ------------ Nothing Alien Tech Used ----------------- None Achievements -------------- None Challenges ------------ None Game ------ Seed AlertScanApparatus Manual? 0 Play Time 00:12:32 Cumulative 127.8 hours Start 2021.06.24 @ 21:27:10 End 2021.06.25 @ 10:33:08 Sessions 1 Manual Loads 0 Difficulty Rogue Special Mode None Game No. 186 Rogue 186 Adventurer 0 Explorer 0 Win Type - Total 5 Types 4/0/0/1/0/0/0/0/0 Lore% 49 Gallery% 73 Achievement% 58 Wizard Run 0 Options --------- ASCII 0 Keyboard 0 Movement Numpad Keybinds 0 Fullscreen 1 Font 18/Terminus Map View 76x50 Tactical HUD 1 Map Filters NONE Filters NONE Steam 1 RUN: d7868a07-996c-45b4-8952-d5dc65066cbf